[Event "*** Titled Tuesday 3|2 Blitz (Early)"]
[Site "Chess.com"]
[Date "2017.01.03"]
[Round "4"]
[White "superjem123"]
[Black "lionheart95"]
[Result "0-1"]
[WhiteElo "2455"]
[BlackElo "2420"]
[TimeControl "180+2"]
[EndTime "11:47:05 PST"]
[Termination "lionheart95 won by resignation"]

1. c4 {[%clk 0:03:02]} 1... Nf6 {[%clk 0:03:00.1]} 2. g3 {[%clk 0:03:03]} 2...
g6 {[%clk 0:03:01.1]} 3. Bg2 {[%clk 0:03:03.9]} 3... Bg7 {[%clk 0:03:02.2]} 4.
Nc3 {[%clk 0:03:05.8]} 4... O-O {[%clk 0:03:03]} 5. e3 {[%clk 0:03:07.1]} 5...
d6 {[%clk 0:03:01.6]} 6. Nge2 {[%clk 0:03:08.5]} 6... e5 {[%clk 0:03:02.3]} 7.
O-O {[%clk 0:03:10]} 7... Re8 {[%clk 0:03:03.1]} 8. d4 {[%clk 0:03:06.6]} 8...
e4 {[%clk 0:03:03.7]} 9. h3 {[%clk 0:03:07.5]} 9... h5 {[%clk 0:03:03.4]} 10.
Qc2 {[%clk 0:03:04]} 10... Bf5 {[%clk 0:03:03.8]} 11. Nf4 {[%clk 0:02:52.8]}
11... Nbd7 {[%clk 0:03:02.4]} 12. b4 {[%clk 0:02:52.9]} 12... Nf8 {[%clk
0:03:02.1]} 13. a4 {[%clk 0:02:50.5]} 13... N8h7 {[%clk 0:03:02.7]} 14. h4
{[%clk 0:02:40.7]} 14... Qd7 {[%clk 0:03:02.8]} 15. a5 {[%clk 0:02:39.1]} 15...
g5 {[%clk 0:03:03.8]} 16. hxg5 {[%clk 0:02:38.4]} 16... Nxg5 {[%clk 0:03:05.7]}
17. Ncd5 {[%clk 0:02:00.7]} 17... Nf3+ {[%clk 0:03:00.3]} 18. Bxf3 {[%clk
0:01:48]} 18... exf3 {[%clk 0:03:00.2]} 19. Nxf6+ {[%clk 0:01:49.9]} 19... Bxf6
{[%clk 0:02:58.1]} 20. Nxh5 {[%clk 0:01:31.1]} 20... Bg5 {[%clk 0:02:45.4]} 21.
e4 {[%clk 0:01:28.5]} 21... Bxe4 {[%clk 0:02:45.2]} 22. Bxg5 {[%clk 0:01:25.6]}
22... Qh3 {[%clk 0:02:42.1]} 23. Nf4 {[%clk 0:01:26.3]} 23... Qxf1+ {[%clk
0:02:40.7]} 24. Kxf1 {[%clk 0:01:17]} 24... Bxc2 {[%clk 0:02:42.6]} 25. Ra3
{[%clk 0:01:17.3]} 25... Re4 {[%clk 0:02:34.6]} 26. Bf6 {[%clk 0:01:02.7]} 26...
Rae8 {[%clk 0:02:32.7]} 27. Ra1 {[%clk 0:00:55.5]} 27... Bb3 {[%clk 0:02:30.3]}
28. c5 {[%clk 0:00:18.9]} 28... Bc4+ {[%clk 0:02:30.2]} 29. Kg1 {[%clk
0:00:19.5]} 29... Re1+ {[%clk 0:02:30.5]} 30. Rxe1 {[%clk 0:00:19.6]} 30...
Rxe1+ {[%clk 0:02:31.8]} 31. Kh2 {[%clk 0:00:21.5]} 31... Rf1 {[%clk 0:02:31.6]}
32. Nh3 {[%clk 0:00:21.7]} 32... Be6 {[%clk 0:02:31]} 33. g4 {[%clk 0:00:19.4]}
33... Bxg4 {[%clk 0:02:30.3]} 34. Ng5 {[%clk 0:00:20.3]} 34... Rxf2+ {[%clk
0:02:30.2]} 35. Kg3 {[%clk 0:00:21.7]} 35... Rg2+ {[%clk 0:02:30.5]} 0-1

[Event "*** Titled Tuesday 3|2 Blitz (Early)"]
[Site "Chess.com"]
[Date "2017.01.03"]
[Round "4"]
[White "amurdercastle"]
[Black "Rating-Schmating"]
[Result "0-1"]
[WhiteElo "2379"]
[BlackElo "2284"]
[TimeControl "180+2"]
[EndTime "11:47:20 PST"]
[Termination "Rating-Schmating won by checkmate"]

1. d4 {[%clk 0:03:02]} 1... Nf6 {[%clk 0:03:00.7]} 2. c4 {[%clk 0:02:57.4]} 2...
e6 {[%clk 0:02:58.6]} 3. Nf3 {[%clk 0:02:57.1]} 3... Bb4+ {[%clk 0:02:57.6]} 4.
Bd2 {[%clk 0:02:57.4]} 4... Qe7 {[%clk 0:02:57.9]} 5. g3 {[%clk 0:02:57.7]} 5...
b6 {[%clk 0:02:58.7]} 6. Bg2 {[%clk 0:02:58.5]} 6... Bb7 {[%clk 0:02:59.5]} 7.
O-O {[%clk 0:03:00.1]} 7... Bxd2 {[%clk 0:02:59.6]} 8. Nbxd2 {[%clk 0:03:02]}
8... d6 {[%clk 0:02:59.5]} 9. Qc2 {[%clk 0:03:03.6]} 9... O-O {[%clk 0:02:59.9]}
10. e4 {[%clk 0:03:05.2]} 10... e5 {[%clk 0:03:00.8]} 11. d5 {[%clk 0:03:06.4]}
11... a5 {[%clk 0:03:01.3]} 12. b3 {[%clk 0:03:05.5]} 12... Na6 {[%clk
0:03:02.2]} 13. a3 {[%clk 0:03:07]} 13... Nc5 {[%clk 0:03:00.6]} 14. b4 {[%clk
0:03:07.6]} 14... axb4 {[%clk 0:03:01.9]} 15. axb4 {[%clk 0:03:09.5]} 15... Na6
{[%clk 0:03:02.7]} 16. Qb3 {[%clk 0:03:09.8]} 16... Nd7 {[%clk 0:03:02.3]} 17.
Ne1 {[%clk 0:03:09.7]} 17... f5 {[%clk 0:03:02.9]} 18. exf5 {[%clk 0:03:11.6]}
18... Rxf5 {[%clk 0:03:03.5]} 19. Nd3 {[%clk 0:03:12.6]} 19... Rff8 {[%clk
0:03:02.5]} 20. Rae1 {[%clk 0:03:11.8]} 20... Nf6 {[%clk 0:03:01.7]} 21. f4
{[%clk 0:03:11.6]} 21... Nd7 {[%clk 0:02:53.3]} 22. fxe5 {[%clk 0:03:01.4]}
22... Rxf1+ {[%clk 0:02:46.3]} 23. Bxf1 {[%clk 0:03:03.3]} 23... Nxe5 {[%clk
0:02:46.6]} 24. Nxe5 {[%clk 0:03:02.4]} 24... dxe5 {[%clk 0:02:47.4]} 25. Bh3
{[%clk 0:03:02.4]} 25... Qxb4 {[%clk 0:02:44.1]} 26. Be6+ {[%clk 0:02:46.6]}
26... Kh8 {[%clk 0:02:43.3]} 27. Qxb4 {[%clk 0:02:41.9]} 27... Nxb4 {[%clk
0:02:44.2]} 28. Rxe5 {[%clk 0:02:43.8]} 28... Ra1+ {[%clk 0:02:42.3]} 29. Kg2
{[%clk 0:02:44]} 29... g6 {[%clk 0:02:39.2]} 30. Kh3 {[%clk 0:02:38.6]} 30...
Nd3 {[%clk 0:02:37.3]} 31. Re3 {[%clk 0:02:36.8]} 31... Nc5 {[%clk 0:02:29.5]}
32. Nb3 {[%clk 0:02:18.7]} 32... Nxb3 {[%clk 0:02:01]} 33. Rxb3 {[%clk
0:02:20.6]} 33... Rc1 {[%clk 0:02:00.4]} 34. d6 {[%clk 0:02:15.7]} 34... cxd6
{[%clk 0:01:58.9]} 35. Rxb6 {[%clk 0:02:16.6]} 35... Be4 {[%clk 0:01:54.8]} 36.
Rxd6 {[%clk 0:02:17.5]} 36... Kg7 {[%clk 0:01:53.5]} 37. Rd7+ {[%clk 0:02:12.3]}
37... Kf6 {[%clk 0:01:54.3]} 38. Rd6 {[%clk 0:01:58.5]} 38... Ke5 {[%clk
0:01:52.2]} 39. Ra6 {[%clk 0:01:58.6]} 39... h5 {[%clk 0:01:46.8]} 40. Kh4
{[%clk 0:01:53.8]} 40... Rc2 {[%clk 0:01:40]} 41. h3 {[%clk 0:01:52.7]} 41...
Rc3 {[%clk 0:01:36.1]} 42. g4 {[%clk 0:01:44.6]} 42... hxg4 {[%clk 0:01:30.7]}
43. hxg4 {[%clk 0:01:43.7]} 43... Kf4 {[%clk 0:01:28.8]} 44. Bf7 {[%clk
0:01:32.7]} 44... g5+ {[%clk 0:01:28.6]} 45. Kh5 {[%clk 0:01:31.8]} 45... Rh3#
{[%clk 0:01:29.7]} 0-1

[Event "*** Titled Tuesday 3|2 Blitz (Early)"]
[Site "Chess.com"]
[Date "2017.01.03"]
[Round "4"]
[White "Imre91"]
[Black "petrpalachev"]
[Result "1-0"]
[WhiteElo "2676"]
[BlackElo "2412"]
[TimeControl "180+2"]
[EndTime "11:47:29 PST"]
[Termination "Imre91 won by resignation"]

1. d4 {[%clk 0:03:02]} 1... Nf6 {[%clk 0:03:00.4]} 2. c4 {[%clk 0:02:54.6]} 2...
e6 {[%clk 0:03:01.5]} 3. Nc3 {[%clk 0:02:56.1]} 3... Bb4 {[%clk 0:03:02]} 4. e3
{[%clk 0:02:57.6]} 4... O-O {[%clk 0:03:02]} 5. Ne2 {[%clk 0:02:59.2]} 5... Re8
{[%clk 0:03:02.3]} 6. a3 {[%clk 0:03:00.8]} 6... Bf8 {[%clk 0:03:02.7]} 7. Nf4
{[%clk 0:03:02.1]} 7... a5 {[%clk 0:03:01.4]} 8. Bd3 {[%clk 0:03:02.8]} 8... d6
{[%clk 0:02:57.5]} 9. O-O {[%clk 0:03:03.3]} 9... e5 {[%clk 0:02:58.6]} 10. Nfe2
{[%clk 0:03:04.5]} 10... g6 {[%clk 0:02:53.9]} 11. d5 {[%clk 0:02:59.8]} 11...
Na6 {[%clk 0:02:53.7]} 12. e4 {[%clk 0:02:59.9]} 12... Nc5 {[%clk 0:02:53]} 13.
Bc2 {[%clk 0:03:01.2]} 13... Bd7 {[%clk 0:02:54.6]} 14. b3 {[%clk 0:03:01.6]}
14... Bg7 {[%clk 0:02:53.3]} 15. f3 {[%clk 0:03:00.6]} 15... b6 {[%clk 0:02:46]}
16. Be3 {[%clk 0:03:01.4]} 16... Rf8 {[%clk 0:02:46.4]} 17. b4 {[%clk
0:03:00.7]} 17... Nb7 {[%clk 0:02:42.1]} 18. Qd2 {[%clk 0:02:58.6]} 18... Nh5
{[%clk 0:02:40.6]} 19. g4 {[%clk 0:02:58.8]} 19... Nf4 {[%clk 0:02:39.2]} 20.
Nxf4 {[%clk 0:02:57.4]} 20... exf4 {[%clk 0:02:41.1]} 21. Bxf4 {[%clk
0:02:58.9]} 21... axb4 {[%clk 0:02:39]} 22. axb4 {[%clk 0:02:59]} 22... Rxa1
{[%clk 0:02:40.5]} 23. Rxa1 {[%clk 0:03:00.5]} 23... Qf6 {[%clk 0:02:42.2]} 24.
Ra3 {[%clk 0:03:01.6]} 24... g5 {[%clk 0:02:35.9]} 25. Bxg5 {[%clk 0:03:02.8]}
25... Qxf3 {[%clk 0:02:36]} 26. Bd1 {[%clk 0:03:04.3]} 26... Bxc3 {[%clk
0:01:26.9]} 27. Bxf3 {[%clk 0:03:03.6]} 27... Bxd2 {[%clk 0:01:28.3]} 28. Bxd2
{[%clk 0:03:05.5]} 28... b5 {[%clk 0:01:28.6]} 29. Ra7 {[%clk 0:03:05.7]} 29...
Rb8 {[%clk 0:01:26.9]} 30. c5 {[%clk 0:03:01.4]} 30... dxc5 {[%clk 0:01:27.6]}
31. bxc5 {[%clk 0:03:03.3]} 31... Nxc5 {[%clk 0:01:28.7]} 32. Rxc7 {[%clk
0:03:04.8]} 32... Rc8 {[%clk 0:01:30.4]} 33. Rxc8+ {[%clk 0:03:05.3]} 33... Bxc8
{[%clk 0:01:32.3]} 34. Kf2 {[%clk 0:03:03.5]} 34... Nd3+ {[%clk 0:01:31.6]} 35.
Ke3 {[%clk 0:03:04.4]} 35... Ne5 {[%clk 0:01:33.2]} 36. Be2 {[%clk 0:03:04.5]}
36... Nxg4+ {[%clk 0:01:34]} 37. Kf4 {[%clk 0:03:05.6]} 37... Nf6 {[%clk
0:01:22.8]} 38. Bxb5 {[%clk 0:03:05.9]} 38... Bd7 {[%clk 0:01:08.5]} 39. Bd3
{[%clk 0:03:04.5]} 39... Ng4 {[%clk 0:01:03.8]} 40. Be2 {[%clk 0:03:02.2]} 40...
Nf6 {[%clk 0:00:39.7]} 41. Ba5 {[%clk 0:03:02.3]} 41... Kf8 {[%clk 0:00:32.4]}
42. Bd8 {[%clk 0:03:00.5]} 42... Kg7 {[%clk 0:00:30.2]} 43. Ke5 {[%clk
0:02:55.9]} 43... Ng4+ {[%clk 0:00:28.9]} 44. Kd6 {[%clk 0:02:56.2]} 44... Bc8
{[%clk 0:00:12.6]} 45. Kc7 {[%clk 0:02:57.2]} 45... Bf5 {[%clk 0:00:09.3]} 46.
exf5 {[%clk 0:02:57.8]} 46... Nxh2 {[%clk 0:00:10.9]} 1-0

[Event "*** Titled Tuesday 3|2 Blitz (Early)"]
[Site "Chess.com"]
[Date "2017.01.03"]
[Round "4"]
[White "PelinGorki"]
[Black "Lupul_Cenusiu"]
[Result "1-0"]
[WhiteElo "2378"]
[BlackElo "2456"]
[TimeControl "180+2"]
[EndTime "11:47:34 PST"]
[Termination "PelinGorki won by resignation"]

1. e4 {[%clk 0:03:02]} 1... c5 {[%clk 0:02:58]} 2. Nf3 {[%clk 0:03:02.9]} 2...
e6 {[%clk 0:02:59.1]} 3. d4 {[%clk 0:03:04.8]} 3... cxd4 {[%clk 0:03:00.3]} 4.
Nxd4 {[%clk 0:03:06.7]} 4... a6 {[%clk 0:03:01.9]} 5. Bd3 {[%clk 0:03:07]} 5...
Bc5 {[%clk 0:03:02.3]} 6. Nb3 {[%clk 0:03:07.6]} 6... Be7 {[%clk 0:03:03.3]} 7.
Qe2 {[%clk 0:03:09.5]} 7... d6 {[%clk 0:03:04.2]} 8. c4 {[%clk 0:03:09.8]} 8...
Nf6 {[%clk 0:03:04.7]} 9. O-O {[%clk 0:03:10.2]} 9... O-O {[%clk 0:03:04]} 10.
Nc3 {[%clk 0:03:10.8]} 10... Nbd7 {[%clk 0:03:03.1]} 11. f4 {[%clk 0:03:11.9]}
11... Re8 {[%clk 0:03:01.4]} 12. g4 {[%clk 0:03:10.7]} 12... Nc5 {[%clk
0:02:56.9]} 13. Nxc5 {[%clk 0:03:08.4]} 13... dxc5 {[%clk 0:02:57.9]} 14. g5
{[%clk 0:03:10.3]} 14... Nd7 {[%clk 0:02:55.7]} 15. e5 {[%clk 0:03:11]} 15...
Nf8 {[%clk 0:02:54.6]} 16. Be3 {[%clk 0:03:09.5]} 16... b6 {[%clk 0:02:54.4]}
17. Be4 {[%clk 0:03:08.9]} 17... Ra7 {[%clk 0:02:54]} 18. Rad1 {[%clk
0:03:09.3]} 18... Qc7 {[%clk 0:02:54.1]} 19. h4 {[%clk 0:03:07.5]} 19... Bb7
{[%clk 0:02:54.5]} 20. h5 {[%clk 0:03:06.8]} 20... Rd8 {[%clk 0:02:49.9]} 21.
Rxd8 {[%clk 0:03:04.9]} 21... Qxd8 {[%clk 0:02:50.8]} 22. Rd1 {[%clk 0:03:06.8]}
22... Qc8 {[%clk 0:02:51.1]} 23. h6 {[%clk 0:02:53.3]} 23... g6 {[%clk
0:02:32.9]} 24. Qd3 {[%clk 0:02:52]} 24... Bc6 {[%clk 0:02:29]} 25. Bxc6 {[%clk
0:02:50.2]} 25... Qxc6 {[%clk 0:02:29.7]} 26. Qe4 {[%clk 0:02:49.7]} 26... Qc8
{[%clk 0:02:30.2]} 27. b3 {[%clk 0:02:45.9]} 27... Rd7 {[%clk 0:02:31]} 28. Rxd7
{[%clk 0:02:45.3]} 28... Qxd7 {[%clk 0:02:31.9]} 29. Kf2 {[%clk 0:02:45.9]}
29... Qc8 {[%clk 0:02:28.4]} 30. Qd3 {[%clk 0:02:43]} 30... Nd7 {[%clk
0:02:26.6]} 31. Ne4 {[%clk 0:02:43.8]} 31... Qc6 {[%clk 0:02:26.8]} 32. a3
{[%clk 0:02:40.5]} 32... Kf8 {[%clk 0:02:25.4]} 33. Bd2 {[%clk 0:02:34.9]} 33...
Ke8 {[%clk 0:02:23.7]} 34. b4 {[%clk 0:02:35.6]} 34... b5 {[%clk 0:02:14.7]} 35.
cxb5 {[%clk 0:02:27]} 35... axb5 {[%clk 0:02:15.4]} 36. Qf3 {[%clk 0:02:19.9]}
36... Kd8 {[%clk 0:02:10.8]} 37. bxc5 {[%clk 0:02:18.9]} 37... Bxc5+ {[%clk
0:02:09]} 38. Kg3 {[%clk 0:02:17.5]} 38... Qd5 {[%clk 0:02:05.6]} 39. Ba5+
{[%clk 0:02:17.7]} 39... Ke7 {[%clk 0:02:03.8]} 40. Nxc5 {[%clk 0:02:16.7]}
40... Qd4 {[%clk 0:01:51.7]} 41. Nxd7 {[%clk 0:02:11.2]} 41... Qg1+ {[%clk
0:01:48.9]} 42. Kh3 {[%clk 0:02:12.3]} 42... Qc1 {[%clk 0:01:41.8]} 43. Nf6
{[%clk 0:02:07.3]} 43... Qc8 {[%clk 0:01:06.5]} 44. Bb4+ {[%clk 0:02:06.7]}
44... Kd8 {[%clk 0:01:07.8]} 45. Qd3+ {[%clk 0:02:06.3]} 45... Kc7 {[%clk
0:01:09.1]} 46. Qc3+ {[%clk 0:02:07.6]} 46... Kb6 {[%clk 0:01:09.9]} 47. Qxc8
{[%clk 0:02:09.5]} 1-0

[Event "*** Titled Tuesday 3|2 Blitz (Early)"]
[Site "Chess.com"]
[Date "2017.01.03"]
[Round "4"]
[White "mwpchess"]
[Black "Feegus"]
[Result "1-0"]
[WhiteElo "2448"]
[BlackElo "2311"]
[TimeControl "180+2"]
[EndTime "11:47:36 PST"]
[Termination "mwpchess won by resignation"]

1. c4 {[%clk 0:03:02]} 1... Nf6 {[%clk 0:03:00.3]} 2. g3 {[%clk 0:03:01.6]} 2...
g6 {[%clk 0:03:01]} 3. Bg2 {[%clk 0:03:01.3]} 3... Bg7 {[%clk 0:03:02.9]} 4. Nc3
{[%clk 0:03:01.6]} 4... O-O {[%clk 0:03:03.2]} 5. d3 {[%clk 0:03:01.8]} 5... c5
{[%clk 0:03:01.7]} 6. Rb1 {[%clk 0:03:01.4]} 6... Nc6 {[%clk 0:03:01]} 7. a3
{[%clk 0:03:01.8]} 7... a5 {[%clk 0:02:48.3]} 8. e3 {[%clk 0:02:55.6]} 8... e6
{[%clk 0:02:42.6]} 9. Nge2 {[%clk 0:02:51.4]} 9... d5 {[%clk 0:02:42.8]} 10. O-O
{[%clk 0:02:46]} 10... d4 {[%clk 0:02:43.3]} 11. exd4 {[%clk 0:02:43.8]} 11...
cxd4 {[%clk 0:02:43.8]} 12. Nb5 {[%clk 0:02:43.4]} 12... e5 {[%clk 0:02:42.1]}
13. b4 {[%clk 0:02:39.7]} 13... Bf5 {[%clk 0:02:36.8]} 14. Bg5 {[%clk 0:02:35]}
14... Qd7 {[%clk 0:02:34.5]} 15. Bxf6 {[%clk 0:02:33.3]} 15... Bxf6 {[%clk
0:02:34.6]} 16. c5 {[%clk 0:02:28.3]} 16... Nxb4 {[%clk 0:02:25.7]} 17. Nd6
{[%clk 0:02:05.2]} 17... Nxd3 {[%clk 0:02:03.7]} 18. Rxb7 {[%clk 0:01:58.7]}
18... Qe6 {[%clk 0:02:04]} 19. Nxf5 {[%clk 0:01:58.1]} 19... Qxf5 {[%clk
0:02:03.1]} 20. g4 {[%clk 0:01:56.5]} 20... Nxf2 {[%clk 0:01:36.4]} 21. gxf5
{[%clk 0:01:51.7]} 21... Nxd1 {[%clk 0:01:36.7]} 22. fxg6 {[%clk 0:01:50.3]}
22... fxg6 {[%clk 0:01:36.2]} 23. Rxd1 {[%clk 0:01:47]} 23... Rad8 {[%clk
0:01:34]} 24. Nc1 {[%clk 0:01:37.7]} 24... Bg5 {[%clk 0:01:29.7]} 25. Nd3 {[%clk
0:01:36.5]} 25... Be3+ {[%clk 0:01:28.2]} 26. Kh1 {[%clk 0:01:36.9]} 26... Rde8
{[%clk 0:01:28.3]} 27. c6 {[%clk 0:01:33.3]} 27... e4 {[%clk 0:01:28.1]} 28. Nc5
{[%clk 0:01:32.9]} 28... d3 {[%clk 0:01:17.4]} 29. Nxe4 {[%clk 0:01:25.1]} 29...
d2 {[%clk 0:01:18]} 30. h3 {[%clk 0:01:08.3]} 30... Bf4 {[%clk 0:01:16.4]} 31.
Nxd2 {[%clk 0:01:03.2]} 31... Rd8 {[%clk 0:01:15.5]} 32. Rd7 {[%clk 0:01:03]}
32... Rde8 {[%clk 0:01:13]} 33. Ne4 {[%clk 0:00:57.3]} 1-0

[Event "*** Titled Tuesday 3|2 Blitz (Early)"]
[Site "Chess.com"]
[Date "2017.01.03"]
[Round "4"]
[White "stefanodinn"]
[Black "rst2003"]
[Result "0-1"]
[WhiteElo "2222"]
[BlackElo "2121"]
[TimeControl "180+2"]
[EndTime "11:48:01 PST"]
[Termination "rst2003 won on time"]

1. e4 {[%clk 0:03:02]} 1... c5 {[%clk 0:02:59.2]} 2. Nf3 {[%clk 0:03:00]} 2...
d6 {[%clk 0:03:00.1]} 3. d4 {[%clk 0:02:56]} 3... cxd4 {[%clk 0:03:02]} 4. Nxd4
{[%clk 0:02:56.3]} 4... Nf6 {[%clk 0:03:03]} 5. f3 {[%clk 0:02:57]} 5... g6
{[%clk 0:03:02]} 6. c4 {[%clk 0:02:55.5]} 6... Bg7 {[%clk 0:03:01.8]} 7. Nc3
{[%clk 0:02:56.1]} 7... Nc6 {[%clk 0:03:02.6]} 8. Nc2 {[%clk 0:02:45.4]} 8...
O-O {[%clk 0:03:02.4]} 9. Be2 {[%clk 0:02:45.7]} 9... Bd7 {[%clk 0:03:01.3]} 10.
O-O {[%clk 0:02:45.1]} 10... a5 {[%clk 0:02:51.8]} 11. Be3 {[%clk 0:02:23.6]}
11... a4 {[%clk 0:02:50.8]} 12. Qd2 {[%clk 0:02:16.5]} 12... Qa5 {[%clk
0:02:46.9]} 13. Rab1 {[%clk 0:02:10.6]} 13... Rfc8 {[%clk 0:02:45.1]} 14. b4
{[%clk 0:02:07.6]} 14... axb3 {[%clk 0:02:44.4]} 15. axb3 {[%clk 0:02:08.6]}
15... Ng4 {[%clk 0:01:50.2]} 16. b4 {[%clk 0:01:50.7]} 16... Qe5 {[%clk
0:01:41.3]} 17. fxg4 {[%clk 0:01:42]} 17... Qxc3 {[%clk 0:01:40.8]} 18. Qxc3
{[%clk 0:01:29.5]} 18... Bxc3 {[%clk 0:01:42.7]} 19. Rb3 {[%clk 0:01:01]} 19...
Bg7 {[%clk 0:01:40.3]} 20. h3 {[%clk 0:00:44.4]} 20... Ra2 {[%clk 0:01:37.7]}
21. Rc1 {[%clk 0:00:36.2]} 21... Ne5 {[%clk 0:01:31.8]} 22. Ra3 {[%clk 0:00:17]}
22... Rxa3 {[%clk 0:01:23.2]} 23. Nxa3 {[%clk 0:00:17.6]} 23... Ra8 {[%clk
0:01:23.3]} 24. Nc2 {[%clk 0:00:13.6]} 24... Ra2 {[%clk 0:01:18]} 25. Kf1 {[%clk
0:00:13.6]} 25... Be6 {[%clk 0:01:15.9]} 26. Nd4 {[%clk 0:00:12.9]} 26... Bd7
{[%clk 0:01:11.2]} 27. Rc2 {[%clk 0:00:07.4]} 27... Rxc2 {[%clk 0:01:08.9]} 28.
Nxc2 {[%clk 0:00:06.5]} 28... Bc6 {[%clk 0:01:09.7]} 0-1

[Event "*** Titled Tuesday 3|2 Blitz (Early)"]
[Site "Chess.com"]
[Date "2017.01.03"]
[Round "4"]
[White "ZhuChenChess"]
[Black "Andrejkin"]
[Result "0-1"]
[WhiteElo "2322"]
[BlackElo "2191"]
[TimeControl "180+2"]
[EndTime "11:48:22 PST"]
[Termination "Andrejkin won by resignation"]

1. d4 {[%clk 0:03:02]} 1... Nf6 {[%clk 0:02:53.4]} 2. c4 {[%clk 0:03:02.1]} 2...
e6 {[%clk 0:02:55.3]} 3. Nf3 {[%clk 0:03:02.1]} 3... b6 {[%clk 0:02:56.5]} 4. g3
{[%clk 0:03:02.1]} 4... Bb7 {[%clk 0:02:57.7]} 5. Bg2 {[%clk 0:03:02.5]} 5...
Be7 {[%clk 0:02:59.4]} 6. O-O {[%clk 0:03:03.4]} 6... O-O {[%clk 0:03:01.1]} 7.
Nc3 {[%clk 0:03:04.4]} 7... Ne4 {[%clk 0:03:02.2]} 8. Bd2 {[%clk 0:03:05.5]}
8... Nxd2 {[%clk 0:03:00.5]} 9. Qxd2 {[%clk 0:03:05.5]} 9... d5 {[%clk
0:03:02.4]} 10. cxd5 {[%clk 0:03:04.5]} 10... exd5 {[%clk 0:02:50]} 11. Ne5
{[%clk 0:02:54.2]} 11... Nd7 {[%clk 0:02:46.3]} 12. Nd3 {[%clk 0:01:55.9]} 12...
c6 {[%clk 0:02:44.5]} 13. b4 {[%clk 0:01:50.1]} 13... Nf6 {[%clk 0:02:41.7]} 14.
a4 {[%clk 0:01:49.7]} 14... Ne4 {[%clk 0:02:39.2]} 15. Nxe4 {[%clk 0:01:48.7]}
15... dxe4 {[%clk 0:02:41.1]} 16. Nf4 {[%clk 0:01:30.1]} 16... g5 {[%clk
0:02:36.8]} 17. Nh5 {[%clk 0:01:22.1]} 17... f5 {[%clk 0:02:38.4]} 18. g4 {[%clk
0:01:21.6]} 18... c5 {[%clk 0:02:31.1]} 19. bxc5 {[%clk 0:01:09]} 19... bxc5
{[%clk 0:02:33]} 20. gxf5 {[%clk 0:01:04.7]} 20... Qxd4 {[%clk 0:02:29.8]} 21.
Rad1 {[%clk 0:00:41.6]} 21... Qxd2 {[%clk 0:02:25.3]} 22. Rxd2 {[%clk
0:00:42.2]} 22... Rad8 {[%clk 0:02:27.2]} 23. Rfd1 {[%clk 0:00:39.2]} 23... Bc6
{[%clk 0:02:25.2]} 24. f6 {[%clk 0:00:34.4]} 24... Rxd2 {[%clk 0:02:22.8]} 25.
Rxd2 {[%clk 0:00:32.4]} 25... Rd8 {[%clk 0:02:23.2]} 26. Rxd8+ {[%clk
0:00:18.7]} 26... Bxd8 {[%clk 0:02:25.1]} 27. a5 {[%clk 0:00:14.7]} 27... c4
{[%clk 0:02:23.7]} 28. Kf1 {[%clk 0:00:13.8]} 28... c3 {[%clk 0:02:19.7]} 29.
Ke1 {[%clk 0:00:13.7]} 29... c2 {[%clk 0:02:17.7]} 30. Kd2 {[%clk 0:00:13.9]}
30... e3+ {[%clk 0:02:14.3]} 31. fxe3 {[%clk 0:00:15.2]} 31... Bxa5+ {[%clk
0:02:09]} 32. Kxc2 {[%clk 0:00:16.2]} 32... Bxg2 {[%clk 0:02:10.9]} 33. Kd3
{[%clk 0:00:17.2]} 33... Kf7 {[%clk 0:02:05.3]} 34. e4 {[%clk 0:00:17.6]} 34...
Bb6 {[%clk 0:02:00.3]} 35. e5 {[%clk 0:00:17.4]} 35... a5 {[%clk 0:01:56.7]} 36.
Ng7 {[%clk 0:00:17.9]} 36... a4 {[%clk 0:01:56.1]} 37. Nf5 {[%clk 0:00:18.7]}
37... a3 {[%clk 0:01:57.2]} 38. Kc3 {[%clk 0:00:14.2]} 38... a2 {[%clk
0:01:52.2]} 39. Kb2 {[%clk 0:00:15.3]} 39... Ke6 {[%clk 0:01:50.9]} 40. Kxa2
{[%clk 0:00:12.1]} 40... Bd5+ {[%clk 0:01:47.9]} 0-1